[Event "Titled Tuesday Blitz June 1 2021"]
[White "Viswanadha, Kesav"]
[Black "Quintin Navarro, Alberto"]
[WhiteFideId "2059533"]
[BlackFideId "2292688"]
[WhiteElo "2191"]
[BlackElo "2289"]
[Result "0-1"]
[Round "11"]
[TimeControl "180+1"]
[Date "2021.06.01"]
[WhiteClock "0:00:14"]
[BlackClock "0:00:03"]

1. e4 {[%clk 0:03:00]}  e5 {[%clk 0:02:58]} 2. Nf3 {[%clk 0:02:59]}  Nc6 {[%clk 0:02:57]} 3. Bb5 {[%clk 0:03:00]}  a6 {[%clk 0:02:57]} 4. Ba4 {[%clk 0:03:01]}  Nf6 {[%clk 0:02:57]} 5. O-O {[%clk 0:03:01]}  Be7 {[%clk 0:02:57]} 6. Re1 {[%clk 0:03:01]}  b5 {[%clk 0:02:57]} 7. Bb3 {[%clk 0:03:02]}  d6 {[%clk 0:02:57]} 8. c3 {[%clk 0:03:01]}  O-O {[%clk 0:02:57]} 9. d4 {[%clk 0:03:02]}  Bg4 {[%clk 0:02:56]} 10. d5 {[%clk 0:03:02]}  Na5 {[%clk 0:02:56]} 11. Bc2 {[%clk 0:03:03]}  c6 {[%clk 0:02:56]} 12. h3 {[%clk 0:03:04]}  Bd7 {[%clk 0:02:46]} 13. dxc6 {[%clk 0:03:03]}  Bxc6 {[%clk 0:02:45]} 14. Nbd2 {[%clk 0:03:04]}  Nb7 {[%clk 0:02:41]} 15. b4 {[%clk 0:02:58]}  Qc7 {[%clk 0:02:40]} 16. Nf1 {[%clk 0:02:54]}  Nd8 {[%clk 0:02:41]} 17. Ng3 {[%clk 0:02:52]}  Re8 {[%clk 0:02:40]} 18. Nf5 {[%clk 0:02:50]}  Bf8 {[%clk 0:02:37]} 19. Bg5 {[%clk 0:02:50]}  Nd7 {[%clk 0:02:33]} 20. Qd2 {[%clk 0:02:41]}  Ne6 {[%clk 0:02:30]} 21. Be3 {[%clk 0:02:40]}  Nf6 {[%clk 0:02:29]} 22. Ng5 {[%clk 0:02:17]}  Rad8 {[%clk 0:02:19]} 23. Qe2 {[%clk 0:02:08]}  h6 {[%clk 0:02:08]} 24. Nxe6 {[%clk 0:02:08]}  fxe6 {[%clk 0:02:08]} 25. Ng3 {[%clk 0:02:08]}  Be7 {[%clk 0:01:58]} 26. Nh5 {[%clk 0:02:03]}  Rf8 {[%clk 0:01:53]} 27. Rad1 {[%clk 0:01:54]}  Nxh5 {[%clk 0:01:43]} 28. Qxh5 {[%clk 0:01:52]}  Rf6 {[%clk 0:01:44]} 29. Qg4 {[%clk 0:01:42]}  Kh8 {[%clk 0:01:28]} 30. Bb3 {[%clk 0:01:42]}  d5 {[%clk 0:01:26]} 31. Bc2 {[%clk 0:01:28]}  Rdf8 {[%clk 0:01:14]} 32. Re2 {[%clk 0:01:20]}  Qb7 {[%clk 0:01:02]} 33. f4 {[%clk 0:00:57]}  exf4 {[%clk 0:00:43]} 34. e5 {[%clk 0:00:55]}  fxe3 {[%clk 0:00:27]} 35. exf6 {[%clk 0:00:54]}  Rxf6 {[%clk 0:00:27]} 36. Rf1 {[%clk 0:00:53]}  Qd7 {[%clk 0:00:15]} 37. Rxf6 {[%clk 0:00:50]}  Bxf6 {[%clk 0:00:16]} 38. Rxe3 {[%clk 0:00:45]}  d4 {[%clk 0:00:17]} 39. Rxe6 {[%clk 0:00:31]}  d3 {[%clk 0:00:13]} 40. Bd1 {[%clk 0:00:19]}  Bxc3 {[%clk 0:00:11]} 41. Qf5 {[%clk 0:00:18]}  Bf6 {[%clk 0:00:09]} 42. Rxf6 {[%clk 0:00:17]}  Qd4+ {[%clk 0:00:08]} 43. Kh2 {[%clk 0:00:16]}  Qxf6 {[%clk 0:00:08]} 44. Qxd3 {[%clk 0:00:15]}  Qf4+ {[%clk 0:00:05]} 45. g3 {[%clk 0:00:14]}  Qf2# {[%clk 0:00:03]} 0-1


[Site "https://www.chess.com"]

[Event "Titled Tuesday Blitz June 1 2021"]
[White "Vlassov, Nikolai"]
[Black "Gogolev, Artem"]
[WhiteFideId "4103360"]
[BlackFideId "4116615"]
[WhiteElo "2407"]
[BlackElo "2191"]
[Result "1-0"]
[Round "11"]
[TimeControl "180+1"]
[Date "2021.06.01"]
[WhiteClock "0:00:31"]
[BlackClock "0:00:02"]

1. g4 {[%clk 0:03:00]}  d5 {[%clk 0:02:58]} 2. Bg2 {[%clk 0:03:00]}  c6 {[%clk 0:02:58]} 3. h3 {[%clk 0:03:01]}  h5 {[%clk 0:02:52]} 4. g5 {[%clk 0:03:00]}  h4 {[%clk 0:02:45]} 5. g6 {[%clk 0:02:59]}  fxg6 {[%clk 0:02:32]} 6. c4 {[%clk 0:02:58]}  Nf6 {[%clk 0:02:26]} 7. d4 {[%clk 0:02:56]}  Bf5 {[%clk 0:02:05]} 8. Nc3 {[%clk 0:02:56]}  e6 {[%clk 0:02:02]} 9. f3 {[%clk 0:02:53]}  Bb4 {[%clk 0:01:23]} 10. Bg5 {[%clk 0:02:38]}  Qa5 {[%clk 0:01:00]} 11. Bxf6 {[%clk 0:02:37]}  Bxc3+ {[%clk 0:01:00]} 12. bxc3 {[%clk 0:02:37]}  Qxc3+ {[%clk 0:01:00]} 13. Kf1 {[%clk 0:02:35]}  gxf6 {[%clk 0:01:00]} 14. Rc1 {[%clk 0:02:26]}  Qe3 {[%clk 0:00:59]} 15. Ke1 {[%clk 0:02:00]}  g5 {[%clk 0:00:49]} 16. Qd2 {[%clk 0:01:58]}  Qxd2+ {[%clk 0:00:48]} 17. Kxd2 {[%clk 0:01:59]}  Nd7 {[%clk 0:00:44]} 18. e4 {[%clk 0:01:59]}  Bg6 {[%clk 0:00:41]} 19. Ne2 {[%clk 0:01:56]}  dxc4 {[%clk 0:00:34]} 20. Rxc4 {[%clk 0:01:55]}  Nb6 {[%clk 0:00:34]} 21. Rb4 {[%clk 0:01:53]}  O-O-O {[%clk 0:00:33]} 22. Ke3 {[%clk 0:01:54]}  e5 {[%clk 0:00:28]} 23. Rc1 {[%clk 0:01:43]}  exd4+ {[%clk 0:00:19]} 24. Nxd4 {[%clk 0:01:43]}  Rd6 {[%clk 0:00:19]} 25. a4 {[%clk 0:01:35]}  Kb8 {[%clk 0:00:16]} 26. a5 {[%clk 0:01:33]}  Rxd4 {[%clk 0:00:10]} 27. Kxd4 {[%clk 0:01:20]}  Rd8+ {[%clk 0:00:09]} 28. Ke3 {[%clk 0:01:19]}  Nc8 {[%clk 0:00:07]} 29. Rxc6 {[%clk 0:01:16]}  Rf8 {[%clk 0:00:07]} 30. f4 {[%clk 0:01:03]}  Be8 {[%clk 0:00:05]} 31. Rc1 {[%clk 0:00:55]}  Bd7 {[%clk 0:00:05]} 32. e5 {[%clk 0:00:49]}  b6 {[%clk 0:00:04]} 33. exf6 {[%clk 0:00:46]}  Rxf6 {[%clk 0:00:04]} 34. fxg5 {[%clk 0:00:45]}  Rf5 {[%clk 0:00:04]} 35. axb6 {[%clk 0:00:41]}  axb6 {[%clk 0:00:04]} 36. Rxh4 {[%clk 0:00:36]}  Rxg5 {[%clk 0:00:03]} 37. Be4 {[%clk 0:00:35]}  Rg3+ {[%clk 0:00:03]} 38. Kd4 {[%clk 0:00:35]}  Rxh3 {[%clk 0:00:03]} 39. Rf4 {[%clk 0:00:31]}  Rh7 {[%clk 0:00:02]} 40. Bxh7 {[%clk 0:00:31]} 1-0


[Site "https://www.chess.com"]

[Event "Titled Tuesday Blitz June 1 2021"]
[White "Von Buelow, Georg"]
[Black "Hebden, Mark L"]
[WhiteFideId "4620658"]
[BlackFideId "400084"]
[WhiteElo "2281"]
[BlackElo "2457"]
[Result "0-1"]
[Round "11"]
[TimeControl "180+1"]
[Date "2021.06.01"]
[WhiteClock "0:00:09"]
[BlackClock "0:01:02"]

1. e4 {[%clk 0:02:56]}  e5 {[%clk 0:02:59]} 2. Nf3 {[%clk 0:02:56]}  Nc6 {[%clk 0:03:00]} 3. Bb5 {[%clk 0:02:54]}  a6 {[%clk 0:03:00]} 4. Ba4 {[%clk 0:02:54]}  Nf6 {[%clk 0:02:59]} 5. O-O {[%clk 0:02:54]}  Be7 {[%clk 0:02:59]} 6. Re1 {[%clk 0:02:54]}  b5 {[%clk 0:02:59]} 7. Bb3 {[%clk 0:02:53]}  O-O {[%clk 0:02:59]} 8. c3 {[%clk 0:02:52]}  d5 {[%clk 0:02:59]} 9. exd5 {[%clk 0:02:52]}  Nxd5 {[%clk 0:02:58]} 10. Nxe5 {[%clk 0:02:52]}  Nxe5 {[%clk 0:02:59]} 11. Rxe5 {[%clk 0:02:51]}  c6 {[%clk 0:02:59]} 12. d3 {[%clk 0:02:51]}  Bd6 {[%clk 0:02:58]} 13. Re1 {[%clk 0:02:50]}  Qh4 {[%clk 0:02:58]} 14. g3 {[%clk 0:02:48]}  Qh3 {[%clk 0:02:58]} 15. Re4 {[%clk 0:02:46]}  Nf6 {[%clk 0:02:58]} 16. Rh4 {[%clk 0:02:13]}  Qf5 {[%clk 0:02:57]} 17. Nd2 {[%clk 0:02:01]}  Ng4 {[%clk 0:02:55]} 18. Ne4 {[%clk 0:01:52]}  Be7 {[%clk 0:02:48]} 19. Rxg4 {[%clk 0:01:23]}  Qxg4 {[%clk 0:02:48]} 20. f3 {[%clk 0:01:16]}  Qg6 {[%clk 0:02:47]} 21. Be3 {[%clk 0:01:12]}  Be6 {[%clk 0:02:46]} 22. Bc2 {[%clk 0:01:07]}  f5 {[%clk 0:02:41]} 23. Nc5 {[%clk 0:01:03]}  Bd5 {[%clk 0:02:29]} 24. f4 {[%clk 0:00:57]}  Rfe8 {[%clk 0:02:27]} 25. Qd2 {[%clk 0:00:50]}  Bd6 {[%clk 0:02:18]} 26. Rf1 {[%clk 0:00:46]}  a5 {[%clk 0:02:15]} 27. d4 {[%clk 0:00:29]}  a4 {[%clk 0:02:13]} 28. a3 {[%clk 0:00:20]}  Bxc5 {[%clk 0:02:03]} 29. dxc5 {[%clk 0:00:20]}  Be4 {[%clk 0:01:55]} 30. Bd1 {[%clk 0:00:18]}  Rad8 {[%clk 0:01:49]} 31. Bd4 {[%clk 0:00:18]}  Qe6 {[%clk 0:01:48]} 32. Qf2 {[%clk 0:00:16]}  Qa2 {[%clk 0:01:41]} 33. Bh5 {[%clk 0:00:16]}  g6 {[%clk 0:01:40]} 34. Bd1 {[%clk 0:00:16]}  Qc4 {[%clk 0:01:36]} 35. h4 {[%clk 0:00:15]}  Qd5 {[%clk 0:01:32]} 36. Re1 {[%clk 0:00:15]}  Bh1 {[%clk 0:01:29]} 37. Re5 {[%clk 0:00:14]}  Rxe5 {[%clk 0:01:27]} 38. fxe5 {[%clk 0:00:15]}  Be4 {[%clk 0:01:20]} 39. Be2 {[%clk 0:00:14]}  Qb3 {[%clk 0:01:17]} 40. Bf1 {[%clk 0:00:14]}  Qd1 {[%clk 0:01:15]} 41. h5 {[%clk 0:00:14]}  g5 {[%clk 0:01:14]} 42. h6 {[%clk 0:00:12]}  Qf3 {[%clk 0:01:11]} 43. Qxf3 {[%clk 0:00:12]}  Bxf3 {[%clk 0:01:11]} 44. Kf2 {[%clk 0:00:12]}  Be4 {[%clk 0:01:11]} 45. Ke3 {[%clk 0:00:12]}  Kf7 {[%clk 0:01:08]} 46. g4 {[%clk 0:00:12]}  Kg6 {[%clk 0:01:07]} 47. gxf5+ {[%clk 0:00:12]}  Bxf5 {[%clk 0:01:06]} 48. Bg2 {[%clk 0:00:11]}  Rc8 {[%clk 0:01:05]} 49. e6 {[%clk 0:00:10]}  Bxe6 {[%clk 0:01:04]} 50. Be4+ {[%clk 0:00:10]}  Bf5 {[%clk 0:01:03]} 51. Bxf5+ {[%clk 0:00:08]}  Kxf5 {[%clk 0:01:03]} 52. Bg7 {[%clk 0:00:09]}  Re8+ {[%clk 0:01:02]} 0-1


[Site "https://www.chess.com"]

[Event "Titled Tuesday Blitz June 1 2021"]
[White "Vukovic, Zdravko"]
[Black "Wagner, Dennis"]
[WhiteFideId "900877"]
[BlackFideId "24650684"]
[WhiteElo "2549"]
[BlackElo "2355"]
[Result "1-0"]
[Round "11"]
[TimeControl "180+1"]
[Date "2021.06.01"]
[WhiteClock "0:00:47"]
[BlackClock "0:00:32"]

1. e4 {[%clk 0:02:58]}  e5 {[%clk 0:02:59]} 2. d4 {[%clk 0:02:59]}  exd4 {[%clk 0:02:59]} 3. Nf3 {[%clk 0:02:59]}  Nc6 {[%clk 0:02:59]} 4. Nxd4 {[%clk 0:03:00]}  Nf6 {[%clk 0:02:59]} 5. Nxc6 {[%clk 0:03:00]}  bxc6 {[%clk 0:03:00]} 6. e5 {[%clk 0:03:00]}  Qe7 {[%clk 0:03:01]} 7. Qe2 {[%clk 0:03:01]}  Nd5 {[%clk 0:03:01]} 8. Nd2 {[%clk 0:03:01]}  a5 {[%clk 0:02:57]} 9. a3 {[%clk 0:03:01]}  a4 {[%clk 0:02:56]} 10. Qe4 {[%clk 0:02:51]}  g6 {[%clk 0:02:49]} 11. c4 {[%clk 0:02:37]}  f5 {[%clk 0:02:47]} 12. exf6 {[%clk 0:02:36]}  Nxf6 {[%clk 0:02:48]} 13. Qxe7+ {[%clk 0:02:25]}  Bxe7 {[%clk 0:02:49]} 14. Bd3 {[%clk 0:02:24]}  O-O {[%clk 0:02:49]} 15. O-O {[%clk 0:02:24]}  Bc5 {[%clk 0:02:48]} 16. Nf3 {[%clk 0:02:14]}  d6 {[%clk 0:02:48]} 17. h3 {[%clk 0:02:07]}  Bf5 {[%clk 0:02:26]} 18. Bxf5 {[%clk 0:01:57]}  gxf5 {[%clk 0:02:27]} 19. Be3 {[%clk 0:01:53]}  Ne4 {[%clk 0:01:33]} 20. Bxc5 {[%clk 0:01:47]}  Nxc5 {[%clk 0:01:34]} 21. Nd4 {[%clk 0:01:44]}  Ra6 {[%clk 0:01:34]} 22. Rfe1 {[%clk 0:01:37]}  Nd3 {[%clk 0:01:31]} 23. Re2 {[%clk 0:01:35]}  Ne5 {[%clk 0:01:27]} 24. c5 {[%clk 0:01:30]}  f4 {[%clk 0:01:25]} 25. Ne6 {[%clk 0:01:24]}  Rf7 {[%clk 0:01:24]} 26. Rd1 {[%clk 0:01:13]}  f3 {[%clk 0:01:10]} 27. Re3 {[%clk 0:01:13]}  Re7 {[%clk 0:01:08]} 28. cxd6 {[%clk 0:01:11]}  cxd6 {[%clk 0:01:02]} 29. Rxd6 {[%clk 0:01:11]}  Nf7 {[%clk 0:00:53]} 30. Rd4 {[%clk 0:01:03]}  fxg2 {[%clk 0:00:50]} 31. Rg4+ {[%clk 0:00:58]}  Kh8 {[%clk 0:00:50]} 32. Nd8 {[%clk 0:00:55]}  h5 {[%clk 0:00:30]} 33. Rxe7 {[%clk 0:00:55]}  hxg4 {[%clk 0:00:30]} 34. Nxf7+ {[%clk 0:00:54]}  Kg7 {[%clk 0:00:31]} 35. hxg4 {[%clk 0:00:53]}  Kf6 {[%clk 0:00:32]} 36. Rc7 {[%clk 0:00:52]}  Rb6 {[%clk 0:00:32]} 37. g5+ {[%clk 0:00:47]}  Kg6 {[%clk 0:00:31]} 38. Rxc6+ {[%clk 0:00:47]}  Rxc6 {[%clk 0:00:31]} 39. Ne5+ {[%clk 0:00:47]}  Kxg5 {[%clk 0:00:32]} 40. Nxc6 {[%clk 0:00:47]}  Kf4 {[%clk 0:00:31]} 41. Kxg2 {[%clk 0:00:48]}  Ke4 {[%clk 0:00:32]} 42. Kg3 {[%clk 0:00:47]} 1-0


[Site "https://www.chess.com"]

[Event "Titled Tuesday Blitz June 1 2021"]
[White "Zhigalko, Sergei"]
[Black "Quintiliano Pinto, Renato R."]
[WhiteFideId "13502956"]
[BlackFideId "2117568"]
[WhiteElo "2662"]
[BlackElo "2439"]
[Result "1-0"]
[Round "11"]
[TimeControl "180+1"]
[Date "2021.06.01"]
[WhiteClock "0:00:04"]
[BlackClock "0:00:05"]

1. e4 {[%clk 0:03:00]}  c5 {[%clk 0:02:59]} 2. Nf3 {[%clk 0:03:01]}  d6 {[%clk 0:02:59]} 3. d4 {[%clk 0:03:01]}  cxd4 {[%clk 0:03:00]} 4. Qxd4 {[%clk 0:03:02]}  Nc6 {[%clk 0:02:59]} 5. Bb5 {[%clk 0:03:02]}  Bd7 {[%clk 0:02:59]} 6. Bxc6 {[%clk 0:03:02]}  Bxc6 {[%clk 0:02:59]} 7. Nc3 {[%clk 0:03:02]}  Nf6 {[%clk 0:02:59]} 8. Bg5 {[%clk 0:03:02]}  e6 {[%clk 0:02:59]} 9. O-O-O {[%clk 0:03:02]}  Be7 {[%clk 0:02:59]} 10. Rhe1 {[%clk 0:03:01]}  O-O {[%clk 0:02:58]} 11. Kb1 {[%clk 0:03:01]}  Qa5 {[%clk 0:02:03]} 12. Qd2 {[%clk 0:03:00]}  Qa6 {[%clk 0:01:56]} 13. Nd4 {[%clk 0:03:00]}  Rac8 {[%clk 0:01:54]} 14. f3 {[%clk 0:03:00]}  Rfd8 {[%clk 0:01:53]} 15. g4 {[%clk 0:03:00]}  b5 {[%clk 0:01:53]} 16. Nce2 {[%clk 0:03:00]}  Qb7 {[%clk 0:01:33]} 17. Ng3 {[%clk 0:03:00]}  b4 {[%clk 0:01:23]} 18. Nh5 {[%clk 0:02:55]}  Ne8 {[%clk 0:01:10]} 19. Bxe7 {[%clk 0:02:48]}  Qxe7 {[%clk 0:01:11]} 20. Qxb4 {[%clk 0:02:48]}  Ba8 {[%clk 0:01:05]} 21. Qd2 {[%clk 0:02:39]}  g6 {[%clk 0:00:54]} 22. Rg1 {[%clk 0:01:59]}  Kh8 {[%clk 0:00:37]} 23. Qh6 {[%clk 0:01:54]}  Kg8 {[%clk 0:00:21]} 24. h4 {[%clk 0:01:27]}  Qf8 {[%clk 0:00:16]} 25. Qxf8+ {[%clk 0:01:01]}  Kxf8 {[%clk 0:00:17]} 26. Ng3 {[%clk 0:01:02]}  e5 {[%clk 0:00:17]} 27. Nb5 {[%clk 0:01:02]}  d5 {[%clk 0:00:16]} 28. Nxa7 {[%clk 0:00:51]}  Rb8 {[%clk 0:00:15]} 29. a4 {[%clk 0:00:42]}  Nc7 {[%clk 0:00:13]} 30. exd5 {[%clk 0:00:35]}  Bxd5 {[%clk 0:00:11]} 31. Ne4 {[%clk 0:00:36]}  Bxe4 {[%clk 0:00:09]} 32. fxe4 {[%clk 0:00:35]}  Rxd1+ {[%clk 0:00:09]} 33. Rxd1 {[%clk 0:00:35]}  Rb4 {[%clk 0:00:10]} 34. Rd7 {[%clk 0:00:16]}  Ne6 {[%clk 0:00:10]} 35. a5 {[%clk 0:00:14]}  Nc5 {[%clk 0:00:09]} 36. Rd5 {[%clk 0:00:09]}  Nxe4 {[%clk 0:00:09]} 37. Rxe5 {[%clk 0:00:08]}  Nc3+ {[%clk 0:00:08]} 38. Kc1 {[%clk 0:00:07]}  Na2+ {[%clk 0:00:08]} 39. Kd2 {[%clk 0:00:07]}  Rxb2 {[%clk 0:00:09]} 40. Nc6 {[%clk 0:00:06]}  Rb7 {[%clk 0:00:08]} 41. a6 {[%clk 0:00:05]}  Rd7+ {[%clk 0:00:07]} 42. Ke3 {[%clk 0:00:04]}  Nb4 {[%clk 0:00:05]} 43. Nxb4 {[%clk 0:00:04]} 1-0